[Event "*** Titled Tuesday Blitz"]
[Site "Chess.com"]
[Date "2021.02.16"]
[Round "4"]
[White "GigaQuparadze"]
[Black "Aradhya2000"]
[Result "1-0"]
[WhiteElo "2939"]
[BlackElo "2573"]
[TimeControl "180+1"]
[EndTime "10:43:28 PST"]
[Termination "GigaQuparadze won by resignation"]

1. e4 {[%clk 0:03:00.9]} 1... e5 {[%clk 0:02:56.5]} 2. f4 {[%clk 0:03:00]} 2...
Bc5 {[%clk 0:02:55.9]} 3. Nf3 {[%clk 0:02:59.8]} 3... d6 {[%clk 0:02:56.2]} 4.
c3 {[%clk 0:02:58.9]} 4... Nf6 {[%clk 0:02:55.8]} 5. d3 {[%clk 0:02:55.2]} 5...
Nc6 {[%clk 0:02:53.9]} 6. Qe2 {[%clk 0:02:47.1]} 6... Bg4 {[%clk 0:02:38.7]} 7.
h3 {[%clk 0:02:46.4]} 7... Nh5 {[%clk 0:02:38.6]} 8. hxg4 {[%clk 0:02:00.5]}
8... Ng3 {[%clk 0:02:37.5]} 9. Qd1 {[%clk 0:02:00.3]} 9... Nxh1 {[%clk
0:02:36.9]} 10. d4 {[%clk 0:01:58]} 10... exd4 {[%clk 0:02:30.1]} 11. cxd4
{[%clk 0:01:58.9]} 11... Bb4+ {[%clk 0:02:29.9]} 12. Nc3 {[%clk 0:01:57.9]}
12... O-O {[%clk 0:02:28.6]} 13. Bd3 {[%clk 0:01:56.8]} 13... Qf6 {[%clk
0:02:12.1]} 14. Be3 {[%clk 0:01:51.8]} 14... Qg6 {[%clk 0:01:52.6]} 15. g5
{[%clk 0:01:37.5]} 15... Rfe8 {[%clk 0:01:38.7]} 16. e5 {[%clk 0:01:22]} 16...
Qh5 {[%clk 0:01:37.6]} 17. Kd2 {[%clk 0:01:22.1]} 17... dxe5 {[%clk 0:01:32.4]}
18. Nxe5 {[%clk 0:01:11.6]} 18... Qxd1+ {[%clk 0:01:30.3]} 19. Rxd1 {[%clk
0:01:12.5]} 19... Ng3 {[%clk 0:01:12.4]} 20. Bf2 {[%clk 0:01:12.4]} 20... Nh5
{[%clk 0:01:11.2]} 21. g3 {[%clk 0:01:12.5]} 21... Rad8 {[%clk 0:01:06.1]} 22.
Kc2 {[%clk 0:01:01.9]} 22... g6 {[%clk 0:00:46.3]} 23. Nxc6 {[%clk 0:00:39]}
23... bxc6 {[%clk 0:00:45.1]} 24. Ne4 {[%clk 0:00:39.3]} 24... Bf8 {[%clk
0:00:22.2]} 25. Rf1 {[%clk 0:00:31.7]} 25... Bg7 {[%clk 0:00:21.3]} 26. Be1
{[%clk 0:00:21.2]} 26... Rxd4 {[%clk 0:00:19.6]} 27. Nc3 {[%clk 0:00:18.9]}
27... Rd7 {[%clk 0:00:16.5]} 28. Bf2 {[%clk 0:00:16.7]} 28... f6 {[%clk
0:00:14.3]} 29. Bc4+ {[%clk 0:00:16.5]} 29... Kh8 {[%clk 0:00:13.4]} 30. gxf6
{[%clk 0:00:15.9]} 30... Bxf6 {[%clk 0:00:13.5]} 31. Rh1 {[%clk 0:00:13]} 31...
Ng7 {[%clk 0:00:11.8]} 32. Bd3 {[%clk 0:00:12.7]} 32... Nf5 {[%clk 0:00:09.5]}
33. Ne4 {[%clk 0:00:12.8]} 33... Nd4+ {[%clk 0:00:09.3]} 34. Kd2 {[%clk
0:00:12.9]} 34... Be7 {[%clk 0:00:07]} 35. Kc3 {[%clk 0:00:12.2]} 35... Nb5+
{[%clk 0:00:06.1]} 36. Bxb5 {[%clk 0:00:11.8]} 36... cxb5 {[%clk 0:00:07]} 37.
Bd4+ {[%clk 0:00:11.7]} 37... Kg8 {[%clk 0:00:07.1]} 38. b3 {[%clk 0:00:10.8]}
38... b4+ {[%clk 0:00:05.5]} 39. Kc4 {[%clk 0:00:10.5]} 39... Bd8 {[%clk
0:00:05.7]} 40. Be5 {[%clk 0:00:10.4]} 40... Rde7 {[%clk 0:00:05.5]} 41. Nf6+
{[%clk 0:00:10.3]} 41... Kf8 {[%clk 0:00:05.8]} 42. Nxh7+ {[%clk 0:00:09.9]}
42... Kg8 {[%clk 0:00:05.4]} 43. Nf6+ {[%clk 0:00:10]} 43... Kf8 {[%clk
0:00:05.7]} 44. Rh8+ {[%clk 0:00:09.9]} 44... Kf7 {[%clk 0:00:05.9]} 45. Nxe8
{[%clk 0:00:10.1]} 45... Rxe8 {[%clk 0:00:05.9]} 46. Rh7+ {[%clk 0:00:10.4]}
46... Ke6 {[%clk 0:00:05.8]} 47. Rg7 {[%clk 0:00:10.7]} 47... g5 {[%clk
0:00:05.4]} 48. Kxb4 {[%clk 0:00:10.5]} 48... gxf4 {[%clk 0:00:05.7]} 49. gxf4
{[%clk 0:00:11.4]} 49... Be7+ {[%clk 0:00:06.2]} 50. Kc4 {[%clk 0:00:11.6]}
50... c6 {[%clk 0:00:06.3]} 51. Rg6+ {[%clk 0:00:11.9]} 51... Kd7 {[%clk
0:00:06.3]} 52. f5 {[%clk 0:00:12.2]} 52... Rf8 {[%clk 0:00:06.3]} 53. f6 {[%clk
0:00:12.2]} 53... Ba3 {[%clk 0:00:06.5]} 54. Rg7+ {[%clk 0:00:12.2]} 54... Ke6
{[%clk 0:00:07]} 55. Bc3 {[%clk 0:00:12.5]} 55... Bd6 {[%clk 0:00:05.8]} 56.
Rxa7 {[%clk 0:00:12.4]} 56... Be5 {[%clk 0:00:05.7]} 57. Re7+ {[%clk 0:00:11.2]}
57... Kxf6 {[%clk 0:00:05.2]} 58. Rxe5 {[%clk 0:00:12.1]} 58... Kg6 {[%clk
0:00:05.7]} 59. Re6+ {[%clk 0:00:11.8]} 59... Kf5 {[%clk 0:00:06.2]} 60. Rxc6
{[%clk 0:00:12.3]} 60... Ra8 {[%clk 0:00:06.4]} 61. a4 {[%clk 0:00:11.9]} 61...
Ra7 {[%clk 0:00:06.4]} 62. Rc5+ {[%clk 0:00:12.5]} 62... Ke6 {[%clk 0:00:06.2]}
63. a5 {[%clk 0:00:13.4]} 63... Kd6 {[%clk 0:00:05.9]} 64. b4 {[%clk 0:00:13.7]}
64... Rf7 {[%clk 0:00:05.4]} 65. Be5+ {[%clk 0:00:14.6]} 65... Ke6 {[%clk
0:00:05.4]} 66. Bd4 {[%clk 0:00:14.8]} 66... Rf1 {[%clk 0:00:04.8]} 67. a6
{[%clk 0:00:15.1]} 67... Ra1 {[%clk 0:00:03.7]} 68. Bxa1 {[%clk 0:00:14.5]} 1-0

[Event "*** Titled Tuesday Blitz"]
[Site "Chess.com"]
[Date "2021.02.16"]
[Round "4"]
[White "WiktoriaPOL"]
[Black "MariaFominykh"]
[Result "1-0"]
[WhiteElo "2031"]
[BlackElo "2248"]
[TimeControl "180+1"]
[EndTime "10:43:33 PST"]
[Termination "WiktoriaPOL won by resignation"]

1. e4 {[%clk 0:03:00.9]} 1... d6 {[%clk 0:02:58.7]} 2. d4 {[%clk 0:03:00.2]}
2... Nf6 {[%clk 0:02:58]} 3. Nc3 {[%clk 0:03:00.4]} 3... e5 {[%clk 0:02:58.2]}
4. dxe5 {[%clk 0:02:56.4]} 4... dxe5 {[%clk 0:02:59.1]} 5. Qxd8+ {[%clk
0:02:56]} 5... Kxd8 {[%clk 0:02:58.2]} 6. Nf3 {[%clk 0:02:56.1]} 6... Bd6 {[%clk
0:02:54]} 7. Bc4 {[%clk 0:02:55.1]} 7... Be6 {[%clk 0:02:49.4]} 8. Bxe6 {[%clk
0:02:54.2]} 8... fxe6 {[%clk 0:02:50.3]} 9. Bg5 {[%clk 0:02:51.4]} 9... a6
{[%clk 0:02:49]} 10. O-O-O {[%clk 0:02:50.2]} 10... Nd7 {[%clk 0:02:48.5]} 11.
Bh4 {[%clk 0:02:47.8]} 11... Ke7 {[%clk 0:02:43.6]} 12. Rd2 {[%clk 0:02:34]}
12... h6 {[%clk 0:02:36.9]} 13. Bg3 {[%clk 0:02:31.1]} 13... b5 {[%clk
0:02:31.3]} 14. h4 {[%clk 0:02:19.5]} 14... b4 {[%clk 0:02:28.1]} 15. Na4 {[%clk
0:02:10.6]} 15... Nxe4 {[%clk 0:02:27.1]} 16. Re2 {[%clk 0:02:08.8]} 16... Nxg3
{[%clk 0:02:23.3]} 17. fxg3 {[%clk 0:02:08.8]} 17... Rhf8 {[%clk 0:02:01]} 18.
h5 {[%clk 0:02:03.3]} 18... Rf5 {[%clk 0:01:28]} 19. Nh4 {[%clk 0:02:00.3]}
19... Rg5 {[%clk 0:01:27.3]} 20. Ng6+ {[%clk 0:01:59.5]} 20... Ke8 {[%clk
0:01:19.7]} 21. Re3 {[%clk 0:01:46.6]} 21... Nf6 {[%clk 0:01:13.8]} 22. Rhe1
{[%clk 0:01:39.4]} 22... Nxh5 {[%clk 0:01:10.9]} 23. Nxe5 {[%clk 0:01:38.5]}
23... Rxg3 {[%clk 0:01:02.4]} 24. Rxg3 {[%clk 0:01:31.4]} 24... Nxg3 {[%clk
0:01:03.3]} 25. Nc4 {[%clk 0:01:30.2]} 25... Bf4+ {[%clk 0:01:02.5]} 26. Kb1
{[%clk 0:01:29.5]} 26... Kf7 {[%clk 0:00:56.9]} 27. Nc5 {[%clk 0:01:27.4]} 27...
Bd6 {[%clk 0:00:37.6]} 28. Nxd6+ {[%clk 0:00:54.4]} 28... cxd6 {[%clk
0:00:38.5]} 29. Nb7 {[%clk 0:00:48.7]} 29... Ke7 {[%clk 0:00:30.5]} 30. Na5
{[%clk 0:00:48]} 30... Rc8 {[%clk 0:00:27.6]} 31. Nb3 {[%clk 0:00:38.8]} 31...
Rf8 {[%clk 0:00:25]} 32. Nd4 {[%clk 0:00:35.3]} 32... Rf1 {[%clk 0:00:24.4]} 33.
Rxf1 {[%clk 0:00:35]} 33... Nxf1 {[%clk 0:00:25.3]} 34. Nc6+ {[%clk 0:00:35]}
34... Kd7 {[%clk 0:00:22.3]} 35. Nxb4 {[%clk 0:00:34.8]} 35... Ne3 {[%clk
0:00:20.2]} 36. g3 {[%clk 0:00:30.3]} 36... a5 {[%clk 0:00:19.9]} 37. Nd3 {[%clk
0:00:28.8]} 37... Nf5 {[%clk 0:00:20]} 38. g4 {[%clk 0:00:28.3]} 38... Ne3
{[%clk 0:00:19.9]} 39. Nf2 {[%clk 0:00:28.2]} 39... d5 {[%clk 0:00:18.9]} 40.
Kc1 {[%clk 0:00:28.1]} 40... e5 {[%clk 0:00:19]} 41. Kd2 {[%clk 0:00:27.4]}
41... d4 {[%clk 0:00:19.1]} 42. c3 {[%clk 0:00:25.3]} 42... Nc4+ {[%clk
0:00:18.9]} 43. Kc2 {[%clk 0:00:24.8]} 43... Kd6 {[%clk 0:00:18]} 44. b3 {[%clk
0:00:16.8]} 44... Ne3+ {[%clk 0:00:17.5]} 45. Kd3 {[%clk 0:00:16.6]} 45... Kd5
{[%clk 0:00:17.6]} 46. c4+ {[%clk 0:00:13.3]} 46... Kc5 {[%clk 0:00:17.5]} 47.
Ne4+ {[%clk 0:00:12]} 47... Kb4 {[%clk 0:00:17.6]} 48. Nf2 {[%clk 0:00:06.1]}
48... g6 {[%clk 0:00:17.3]} 49. Ke4 {[%clk 0:00:03.5]} 49... h5 {[%clk
0:00:15.8]} 50. gxh5 {[%clk 0:00:03.1]} 50... gxh5 {[%clk 0:00:15.7]} 51. Kxe5
{[%clk 0:00:03.3]} 51... Kc3 {[%clk 0:00:15.7]} 52. c5 {[%clk 0:00:02.9]} 52...
Ng4+ {[%clk 0:00:14]} 53. Nxg4 {[%clk 0:00:02]} 53... hxg4 {[%clk 0:00:14.9]}
54. c6 {[%clk 0:00:02.5]} 54... d3 {[%clk 0:00:13.5]} 55. c7 {[%clk 0:00:02.8]}
55... d2 {[%clk 0:00:13.7]} 56. c8=Q+ {[%clk 0:00:03.1]} 56... Kb2 {[%clk
0:00:13.8]} 57. Qd7 {[%clk 0:00:03.1]} 57... Kc1 {[%clk 0:00:12.6]} 58. Qc6+
{[%clk 0:00:03.2]} 58... Kb2 {[%clk 0:00:12.5]} 59. Qd5 {[%clk 0:00:03.2]} 59...
Kc1 {[%clk 0:00:12.2]} 60. Qc4+ {[%clk 0:00:03.3]} 60... Kb2 {[%clk 0:00:11.9]}
61. Qxg4 {[%clk 0:00:02.9]} 61... Kc2 {[%clk 0:00:11.3]} 62. Qc4+ {[%clk
0:00:03.4]} 62... Kb2 {[%clk 0:00:11.3]} 63. Qd3 {[%clk 0:00:03.3]} 63... Kc1
{[%clk 0:00:11.3]} 64. Qc3+ {[%clk 0:00:03.6]} 64... Kd1 {[%clk 0:00:11.2]} 65.
Qd3 {[%clk 0:00:03.5]} 65... Ke1 {[%clk 0:00:11.2]} 66. Qe3+ {[%clk 0:00:03.6]}
66... Kd1 {[%clk 0:00:11.4]} 67. Kd4 {[%clk 0:00:03.3]} 67... Kc2 {[%clk
0:00:10.5]} 68. Qc3+ {[%clk 0:00:03.4]} 68... Kd1 {[%clk 0:00:10.6]} 69. Qd3
{[%clk 0:00:03.3]} 69... Ke1 {[%clk 0:00:10.3]} 70. Qe3+ {[%clk 0:00:03.3]}
70... Kd1 {[%clk 0:00:10.1]} 71. Kd3 {[%clk 0:00:03.4]} 1-0

[Event "*** Titled Tuesday Blitz"]
[Site "Chess.com"]
[Date "2021.02.16"]
[Round "4"]
[White "MPGM"]
[Black "muchojogo"]
[Result "1-0"]
[WhiteElo "2611"]
[BlackElo "2344"]
[TimeControl "180+1"]
[EndTime "10:43:42 PST"]
[Termination "MPGM won by resignation"]

1. c4 {[%clk 0:03:00.9]} 1... Nf6 {[%clk 0:02:52.8]} 2. Nc3 {[%clk 0:02:59.5]}
2... c5 {[%clk 0:02:46.3]} 3. g3 {[%clk 0:02:58.1]} 3... g6 {[%clk 0:02:45.7]}
4. Bg2 {[%clk 0:02:57.6]} 4... Bg7 {[%clk 0:02:46.3]} 5. b3 {[%clk 0:02:56.5]}
5... Nc6 {[%clk 0:02:45.4]} 6. Bb2 {[%clk 0:02:51.9]} 6... O-O {[%clk
0:02:44.8]} 7. e3 {[%clk 0:02:50.9]} 7... d6 {[%clk 0:02:35.4]} 8. Nge2 {[%clk
0:02:49.8]} 8... Nb4 {[%clk 0:02:30.5]} 9. d3 {[%clk 0:02:23.4]} 9... Bf5 {[%clk
0:02:28.9]} 10. e4 {[%clk 0:02:19.8]} 10... Bd7 {[%clk 0:02:25.8]} 11. O-O
{[%clk 0:02:18.5]} 11... Qc8 {[%clk 0:02:26]} 12. Qd2 {[%clk 0:02:08.3]} 12...
Nc6 {[%clk 0:02:22.8]} 13. Nd5 {[%clk 0:02:00.9]} 13... Ne8 {[%clk 0:01:45.7]}
14. Bxg7 {[%clk 0:02:01.8]} 14... Nxg7 {[%clk 0:01:46.2]} 15. d4 {[%clk
0:01:43.3]} 15... Ne6 {[%clk 0:01:36.8]} 16. e5 {[%clk 0:01:18.7]} 16... dxe5
{[%clk 0:01:32.1]} 17. dxe5 {[%clk 0:01:16.5]} 17... Qd8 {[%clk 0:01:24.4]} 18.
f4 {[%clk 0:01:10.1]} 18... Ned4 {[%clk 0:01:24.6]} 19. Nec3 {[%clk 0:01:04.9]}
19... Bf5 {[%clk 0:01:16]} 20. h3 {[%clk 0:00:54.6]} 20... h5 {[%clk 0:01:03.3]}
21. Rad1 {[%clk 0:00:48.1]} 21... Qd7 {[%clk 0:00:58.5]} 22. Kh2 {[%clk
0:00:47.9]} 22... Kg7 {[%clk 0:00:57.4]} 23. Ne3 {[%clk 0:00:41.9]} 23... Rad8
{[%clk 0:00:44.5]} 24. Qf2 {[%clk 0:00:38.7]} 24... Qc8 {[%clk 0:00:40.7]} 25.
Ne4 {[%clk 0:00:31.5]} 25... b6 {[%clk 0:00:38.1]} 26. Ng5 {[%clk 0:00:27.7]}
26... f6 {[%clk 0:00:31.6]} 27. exf6+ {[%clk 0:00:25.5]} 27... exf6 {[%clk
0:00:32.5]} 28. Nf3 {[%clk 0:00:19.2]} 28... Nxf3+ {[%clk 0:00:32.7]} 29. Qxf3
{[%clk 0:00:17.3]} 29... Nd4 {[%clk 0:00:33.6]} 30. Qf2 {[%clk 0:00:17.2]} 30...
Rfe8 {[%clk 0:00:32.1]} 31. Rfe1 {[%clk 0:00:15.9]} 31... Be4 {[%clk 0:00:30.7]}
32. Nd5 {[%clk 0:00:14.6]} 32... Bxd5 {[%clk 0:00:29.8]} 33. Bxd5 {[%clk
0:00:14.6]} 33... Qf5 {[%clk 0:00:29.5]} 34. h4 {[%clk 0:00:12.1]} 34... Qg4
{[%clk 0:00:28.7]} 35. Rd2 {[%clk 0:00:05.9]} 35... Rxe1 {[%clk 0:00:27]} 36.
Qxe1 {[%clk 0:00:06.8]} 36... Nf5 {[%clk 0:00:13.7]} 37. Qf2 {[%clk 0:00:03.8]}
37... Nd4 {[%clk 0:00:13.2]} 38. Rd3 {[%clk 0:00:03.2]} 38... Qd7 {[%clk
0:00:12.4]} 39. Re3 {[%clk 0:00:03.5]} 39... Re8 {[%clk 0:00:12.6]} 40. Kg2
{[%clk 0:00:02.1]} 40... Rxe3 {[%clk 0:00:12.5]} 41. Qxe3 {[%clk 0:00:03]} 41...
Kf8 {[%clk 0:00:12.8]} 42. Qe4 {[%clk 0:00:03.1]} 42... Qf5 {[%clk 0:00:11.9]}
43. Qxf5 {[%clk 0:00:03.3]} 43... Nxf5 {[%clk 0:00:12.8]} 44. Be4 {[%clk
0:00:03.1]} 44... Ne7 {[%clk 0:00:12.4]} 45. Kf3 {[%clk 0:00:03.3]} 45... Kf7
{[%clk 0:00:12.8]} 46. Ke3 {[%clk 0:00:02.9]} 46... f5 {[%clk 0:00:13.3]} 47.
Bb7 {[%clk 0:00:02.8]} 47... Ke6 {[%clk 0:00:13.9]} 48. Bf3 {[%clk 0:00:03.4]}
48... Ng8 {[%clk 0:00:14.2]} 49. Kd3 {[%clk 0:00:03.9]} 49... Nf6 {[%clk
0:00:14.7]} 50. Kc3 {[%clk 0:00:04.3]} 50... Ne8 {[%clk 0:00:15.3]} 51. a3
{[%clk 0:00:04.3]} 51... Kd6 {[%clk 0:00:15.9]} 52. b4 {[%clk 0:00:04.8]} 52...
Ng7 {[%clk 0:00:15.8]} 53. b5 {[%clk 0:00:04]} 53... Ne6 {[%clk 0:00:16.2]} 54.
a4 {[%clk 0:00:03.7]} 54... Nd4 {[%clk 0:00:16.7]} 55. Bd1 {[%clk 0:00:03.6]}
55... Kc7 {[%clk 0:00:16]} 56. Kd3 {[%clk 0:00:04]} 56... Kb7 {[%clk 0:00:15.1]}
57. Ke3 {[%clk 0:00:04]} 57... a6 {[%clk 0:00:15.3]} 58. Bf3+ {[%clk 0:00:03.2]}
58... Ka7 {[%clk 0:00:15]} 59. Bd5 {[%clk 0:00:03.1]} 59... a5 {[%clk
0:00:14.6]} 60. Bf7 {[%clk 0:00:02.3]} 60... Nc2+ {[%clk 0:00:08.6]} 61. Kd2
{[%clk 0:00:02.3]} 61... Nd4 {[%clk 0:00:03.6]} 62. Bxg6 {[%clk 0:00:02.1]}
62... Nf3+ {[%clk 0:00:04.5]} 63. Ke3 {[%clk 0:00:02.2]} 63... Ng1 {[%clk
0:00:04.8]} 64. Bxh5 {[%clk 0:00:01.7]} 64... Kb8 {[%clk 0:00:05.7]} 65. Bg6
{[%clk 0:00:01.9]} 65... Nh3 {[%clk 0:00:05.7]} 66. Bxf5 {[%clk 0:00:02.1]}
66... Ng1 {[%clk 0:00:04]} 67. Kf2 {[%clk 0:00:02.2]} 67... Kc7 {[%clk
0:00:04.3]} 68. Kg2 {[%clk 0:00:02.4]} 68... Kd8 {[%clk 0:00:05.2]} 69. Kxg1
{[%clk 0:00:02.8]} 69... Ke7 {[%clk 0:00:06.1]} 70. Kf2 {[%clk 0:00:03.5]} 70...
Kf6 {[%clk 0:00:07]} 71. Be4 {[%clk 0:00:04.4]} 71... Kg7 {[%clk 0:00:07.9]} 72.
Kf3 {[%clk 0:00:04.8]} 72... Kf8 {[%clk 0:00:08.8]} 73. g4 {[%clk 0:00:05.7]}
73... Ke7 {[%clk 0:00:09.7]} 74. g5 {[%clk 0:00:06.6]} 74... Kd6 {[%clk
0:00:10.6]} 75. h5 {[%clk 0:00:07.5]} 75... Ke7 {[%clk 0:00:11.5]} 76. h6 {[%clk
0:00:08.4]} 76... Kf8 {[%clk 0:00:12.4]} 77. Kg4 {[%clk 0:00:09.2]} 77... Kg8
{[%clk 0:00:13.3]} 78. f5 {[%clk 0:00:10.1]} 78... Kf8 {[%clk 0:00:14.2]} 79. f6
{[%clk 0:00:11]} 1-0

[Event "*** Titled Tuesday Blitz"]
[Site "Chess.com"]
[Date "2021.02.16"]
[Round "4"]
[White "ARTHURMOTIVATOR"]
[Black "woodhy"]
[Result "0-1"]
[WhiteElo "2318"]
[BlackElo "2466"]
[TimeControl "180+1"]
[EndTime "10:43:50 PST"]
[Termination "woodhy won by resignation"]

1. e4 {[%clk 0:03:00.9]} 1... e6 {[%clk 0:02:55.4]} 2. b3 {[%clk 0:02:59.3]}
2... d5 {[%clk 0:02:56.3]} 3. Bb2 {[%clk 0:02:58.2]} 3... Nf6 {[%clk 0:02:52.4]}
4. e5 {[%clk 0:02:54.9]} 4... Nfd7 {[%clk 0:02:50]} 5. f4 {[%clk 0:02:55.4]}
5... c5 {[%clk 0:02:50.9]} 6. Qg4 {[%clk 0:02:49.7]} 6... Nc6 {[%clk 0:02:51.8]}
7. Nf3 {[%clk 0:02:48.6]} 7... h5 {[%clk 0:02:51.2]} 8. Qh3 {[%clk 0:02:44.5]}
8... g6 {[%clk 0:02:45.2]} 9. Be2 {[%clk 0:02:41.9]} 9... a5 {[%clk 0:02:38.8]}
10. Na3 {[%clk 0:02:32.6]} 10... a4 {[%clk 0:02:28.1]} 11. Nb5 {[%clk
0:02:31.5]} 11... Qb6 {[%clk 0:02:27.8]} 12. Nd6+ {[%clk 0:02:10.6]} 12... Bxd6
{[%clk 0:02:24.8]} 13. exd6 {[%clk 0:02:11.5]} 13... Nd4 {[%clk 0:02:17.3]} 14.
Nxd4 {[%clk 0:02:05.2]} 14... cxd4 {[%clk 0:02:18.2]} 15. Bd3 {[%clk 0:01:57.4]}
15... axb3 {[%clk 0:02:15]} 16. Bxg6 {[%clk 0:01:54.7]} 16... Qxd6 {[%clk
0:02:13.5]} 17. Bxd4 {[%clk 0:01:52]} 17... e5 {[%clk 0:02:05.3]} 18. Bxf7+
{[%clk 0:01:41.6]} 18... Kxf7 {[%clk 0:02:01.9]} 19. fxe5 {[%clk 0:01:40.8]}
19... Nxe5 {[%clk 0:02:02.8]} 20. O-O+ {[%clk 0:01:39.2]} 20... Kg6 {[%clk
0:01:53.8]} 21. Qg3+ {[%clk 0:01:36.1]} 21... Bg4 {[%clk 0:01:51.7]} 22. Bxe5
{[%clk 0:01:30.6]} 22... Qb6+ {[%clk 0:01:48.5]} 23. Kh1 {[%clk 0:01:26.5]}
23... Rhf8 {[%clk 0:01:36.2]} 24. axb3 {[%clk 0:01:13.4]} 24... Rxa1 {[%clk
0:01:33]} 25. Rxa1 {[%clk 0:01:11]} 25... Qf2 {[%clk 0:01:25.8]} 26. Qd3+ {[%clk
0:00:46.6]} 26... Qf5 {[%clk 0:01:14.6]} 27. Qxf5+ {[%clk 0:00:38.8]} 27... Bxf5
{[%clk 0:01:12.3]} 28. c4 {[%clk 0:00:35.9]} 28... Be4 {[%clk 0:01:09.4]} 29.
Kg1 {[%clk 0:00:28]} 29... dxc4 {[%clk 0:01:02.1]} 30. bxc4 {[%clk 0:00:27.5]}
30... Bd3 {[%clk 0:01:02.2]} 31. c5 {[%clk 0:00:24.6]} 31... Rf5 {[%clk
0:00:59.2]} 32. Bd6 {[%clk 0:00:24.5]} 32... h4 {[%clk 0:00:57.6]} 33. Re1
{[%clk 0:00:24]} 33... Rf7 {[%clk 0:00:47.8]} 34. h3 {[%clk 0:00:23.4]} 34...
Bb5 {[%clk 0:00:44.7]} 35. d4 {[%clk 0:00:21.3]} 35... Rf5 {[%clk 0:00:41.1]}
36. Kh2 {[%clk 0:00:20.4]} 36... Bc6 {[%clk 0:00:38.8]} 37. Re6+ {[%clk
0:00:19.7]} 37... Kf7 {[%clk 0:00:38.1]} 38. Rh6 {[%clk 0:00:17.9]} 38... Rf2
{[%clk 0:00:37.2]} 39. Rh7+ {[%clk 0:00:15.8]} 39... Kg6 {[%clk 0:00:36.4]} 40.
Re7 {[%clk 0:00:11.6]} 40... Rxg2+ {[%clk 0:00:35.4]} 41. Kh1 {[%clk 0:00:11.9]}
41... Rg3+ {[%clk 0:00:31.5]} 42. Kh2 {[%clk 0:00:11.7]} 42... Rg2+ {[%clk
0:00:31.7]} 43. Kh1 {[%clk 0:00:11.9]} 43... Rd2+ {[%clk 0:00:31.6]} 44. Kg1
{[%clk 0:00:12]} 44... Rxd4 {[%clk 0:00:30.9]} 45. Kf2 {[%clk 0:00:11.9]} 45...
Rd3 {[%clk 0:00:29.4]} 46. Re6+ {[%clk 0:00:10.6]} 46... Kf5 {[%clk 0:00:28.8]}
47. Re5+ {[%clk 0:00:10.8]} 47... Kf6 {[%clk 0:00:29.1]} 48. Rh5 {[%clk
0:00:09.4]} 48... Rxh3 {[%clk 0:00:27.5]} 49. Rh7 {[%clk 0:00:09.2]} 49... Rh1
{[%clk 0:00:26.5]} 50. Be7+ {[%clk 0:00:08.6]} 50... Ke6 {[%clk 0:00:23.9]} 51.
Rxh4 {[%clk 0:00:07.3]} 51... Rc1 {[%clk 0:00:20.7]} 52. Bd6 {[%clk 0:00:07.2]}
52... Rc2+ {[%clk 0:00:19.6]} 53. Ke3 {[%clk 0:00:07.1]} 53... Ra2 {[%clk
0:00:16.9]} 54. Kd3 {[%clk 0:00:06.5]} 54... Ra3+ {[%clk 0:00:16.5]} 55. Kc2
{[%clk 0:00:06.6]} 55... Kd5 {[%clk 0:00:16.9]} 56. Kb2 {[%clk 0:00:06.7]} 56...
Rf3 {[%clk 0:00:16.7]} 57. Rh5+ {[%clk 0:00:06.7]} 57... Kc4 {[%clk 0:00:16.7]}
58. Rh4+ {[%clk 0:00:07.6]} 58... Kb5 {[%clk 0:00:16.9]} 59. Rh6 {[%clk
0:00:07.3]} 59... Bd5 {[%clk 0:00:16.6]} 60. Rh5 {[%clk 0:00:06.9]} 60... Kc4
{[%clk 0:00:16.1]} 61. Rh4+ {[%clk 0:00:07.3]} 61... Kb5 {[%clk 0:00:16.3]} 62.
Rh5 {[%clk 0:00:07.7]} 62... Bc4 {[%clk 0:00:16.3]} 63. Rh4 {[%clk 0:00:07.9]}
63... Rf2+ {[%clk 0:00:14.9]} 64. Kc3 {[%clk 0:00:06.5]} 64... Bd5 {[%clk
0:00:15]} 65. Rd4 {[%clk 0:00:05.4]} 65... Rf3+ {[%clk 0:00:13.8]} 66. Kb2
{[%clk 0:00:05.1]} 66... Bc4 {[%clk 0:00:13]} 67. Rh4 {[%clk 0:00:04.1]} 67...
Kc6 {[%clk 0:00:11.9]} 68. Rg4 {[%clk 0:00:04.3]} 68... b6 {[%clk 0:00:11.8]}
69. Rxc4 {[%clk 0:00:04.4]} 69... bxc5 {[%clk 0:00:08.3]} 70. Rxc5+ {[%clk
0:00:04.4]} 70... Kxd6 {[%clk 0:00:08.3]} 71. Rc3 {[%clk 0:00:04.6]} 71... Rf2+
{[%clk 0:00:08.6]} 72. Kb3 {[%clk 0:00:04.7]} 72... Rf1 {[%clk 0:00:09.5]} 73.
Kc4 {[%clk 0:00:04.9]} 73... Re1 {[%clk 0:00:09.1]} 74. Rd3+ {[%clk 0:00:05.8]}
74... Ke5 {[%clk 0:00:09.6]} 75. Kc5 {[%clk 0:00:05.7]} 75... Rc1+ {[%clk
0:00:09.7]} 76. Kb4 {[%clk 0:00:04.7]} 76... Ke4 {[%clk 0:00:10.1]} 77. Rb3
{[%clk 0:00:05.3]} 77... Kd4 {[%clk 0:00:09.9]} 78. Rc3 {[%clk 0:00:06.2]} 78...
Rxc3 {[%clk 0:00:09.5]} 0-1